bitfinex-derivatives/quotes_ETHF0:USTF0_20251025
["timestamp","ask_amount","ask_price","bid_price","bid_amount"]
[1761361811535,0.7797,3930.8,3930.7,1.1355852]
[1761361812040,0.7797,3930.8,3930.7,1.4760852]
[1761361812241,0.7797,3930.8,3930.7,0.79574557]
[1761361813339,0.7797,3930.8,3930.7,0.00294557]
[1761361817639,0.7797,3930.8,3930.7,0.46081557]
[1761361817841,0.7797,3930.8,3930.7,1.25361557]
[1761361823651,0.7797,3930.8,3930.7,0.67871557]
[1761361824748,0.7797,3930.8,3930.7,0.00294557]
[1761361825653,1.23756,3930.8,3930.7,0.00294557]
[1761361838957,1.2703,3930.4,3930.3,3.2078]
[1761361839462,0.8124,3930.4,3930.3,3.2078]
[1761361839864,0.8124,3930.4,3930.3,3.21023019]
[1761361840765,0.8124,3930.4,3930.3,0.00243019]
[1761361840951,0.8124,3930.4,3930.3,0.46034019]
[1761361842465,0.8124,3930.4,3930.3,0.00243019]
[1761361847463,0.9515,3930.0,3929.9,3.2078]
[1761361847664,0.9515,3929.5,3929.4,0.2299]
[1761361848569,0.9515,3929.5,3929.4,0.23238365]
[1761361849173,0.9515,3929.5,3929.4,0.00248365]
[1761361849774,0.9515,3929.5,3929.4,0.23238365]
[1761361849975,0.9515,3929.5,3929.4,0.58228365]
[1761361850176,0.5793,3929.5,3929.4,0.79458365]
[1761361850372,0.8124,3929.9,3929.8,0.7921]
[1761361850766,0.8124,3929.9,3929.8,0.4422]
[1761361852677,0.8124,3929.9,3929.8,0.2299]
[1761361852976,0.8124,3929.9,3929.8,0.5798]
[1761361853177,0.8124,3929.9,3929.8,0.7921]
[1761361853779,0.8124,3929.9,3929.8,0.4422]
[1761361855281,0.8124,3929.9,3929.8,0.2299]
[1761361856882,0.8124,3929.9,3929.8,0.5798]
[1761361857284,0.8124,3929.9,3929.8,0.2299]
[1761361858279,0.8124,3929.9,3929.8,0.7691]
[1761361858983,3.2078,3930.1,3929.4,0.00248365]
[1761361858984,0.3442,3930.2,3930.1,0.7842]
[1761361859182,0.8013,3930.2,3930.1,0.7842]
[1761361859378,0.8013,3930.2,3930.1,0.4573]
[1761361859579,0.45785,3930.9,3930.1,0.4573]
[1761361859580,3.2078,3930.9,3930.8,0.7842]
[1761361859777,3.21069333,3931.8,3931.7,0.45775]
[1761361860080,3.21069333,3931.8,3931.7,1.24195]
[1761361860877,3.66779333,3931.8,3931.7,1.24195]
[1761361861080,3.66779333,3931.8,3931.7,0.7842]
[1761361861288,3.66779333,3931.8,3931.7,0.2313]
[1761361861481,4.01199333,3931.8,3931.7,0.2313]
[1761361861987,0.8013,3931.6,3931.5,0.5582]
[1761361862183,0.8013,3931.6,3931.5,0.2313]
[1761361865597,3.21069333,3931.8,3931.1,0.5582]
[1761361865598,0.4796,3931.5,3931.1,0.5582]
[1761361865791,0.2269,3930.9,3930.8,0.7842]
[1761361865996,0.8013,3930.9,3930.8,0.2313]
[1761361866294,0.8013,3930.5,3930.4,1.0161]
[1761361866497,0.8013,3930.5,3930.4,1.2421]
[1761361868095,0.8013,3930.5,3930.4,0.7842]
[1761361868301,0.9415,3930.5,3930.4,0.2313]
[1761361868893,0.3455,3930.4,3930.2,0.5451]
[1761361869196,0.3455,3930.4,3929.4,10.3418787]
[1761361869197,0.8062,3930.1,3930.0,0.7707]
[1761361874194,0.8062,3930.1,3929.9,0.45796]
[1761361874400,0.9464,3930.0,3929.9,0.67516]
[1761361874699,0.9464,3930.0,3929.9,1.22866]
[1761361875493,0.3455,3930.0,3929.9,1.22866]
[1761361875992,3.6685,3930.3,3930.2,1.22863]
[1761361876403,4.014,3930.3,3930.2,1.22863]
[1761361889909,3.2078,3930.3,3930.2,1.22863]
[1761361890308,3.78,3930.3,3930.2,1.22863]
[1761361890516,4.014,3930.3,3930.2,1.22863]
[1761361891009,4.014,3930.3,3930.0,0.78584]
[1761361891209,0.8062,3930.2,3930.1,0.67514]
[1761361891517,0.8062,3930.2,3930.1,1.00304]
[1761361891706,0.8062,3930.2,3930.1,1.22864]
[1761361921526,0.8062,3930.2,3930.1,0.2172]
[1761361922221,0.8062,3930.2,3930.1,1.00595]
[1761361923336,0.8062,3930.2,3930.1,1.22515]
[1761361928132,0.5722,3930.2,3930.1,1.22515]
[1761361928342,0.2267,3930.2,3930.1,1.22515]
[1761361928631,0.2267,3930.2,3930.1,2.13858486]
[1761361929334,0.5668,3930.2,3930.1,2.13858486]
[1761361932441,0.5668,3930.2,3930.1,1.22515]
[1761361934134,3.9911,3930.2,3930.1,1.22515]
[1761361957372,3.9911,3930.2,3930.1,0.67515]
[1761361958171,3.9911,3930.2,3930.1,1.02605]
[1761361960375,3.9911,3930.2,3930.1,1.24475]
[1761361960574,0.5668,3930.2,3930.1,1.24475]
[1761361960769,0.2227,3930.5,3930.4,1.25032]
[1761361961173,0.5567,3930.5,3930.4,1.25032]
[1761361961973,0.9049,3930.5,3930.4,1.25032]
[1761361964172,0.334,3930.5,3930.4,1.25032]
[1761361964473,0.5567,3930.5,3930.4,1.25032]
[1761361965180,0.7714,3930.5,3930.4,1.25032]
[1761361967880,0.9049,3930.5,3930.4,1.25032]
[1761361972378,0.7714,3930.5,3930.4,1.25032]
[1761361978787,3.2078,3930.6,3930.5,1.3857]
[1761361978989,3.531,3930.6,3930.5,1.3857]
[1761361979287,3.7507,3930.6,3930.5,1.3857]
[1761361980091,3.7507,3930.6,3930.5,1.254]
[1761361980092,3.9637,3930.6,3930.5,1.254]
[1761361986394,3.9637,3930.6,3930.5,0.7961]
[1761361986793,3.9637,3930.6,3930.5,0.2312]
[1761361987589,0.7559,3930.4,3930.3,0.91590452]
[1761361987791,0.7559,3930.4,3930.2,0.45794]
[1761361987792,0.3206,3930.3,3930.2,1.37384452]
[1761361987985,0.7583,3930.3,3930.2,1.13910452]
[1761361988386,0.3206,3930.2,3930.1,0.91590452]
[1761361988689,0.8929,3930.0,3929.9,2.702]
[1761361988896,0.8929,3930.0,3929.9,3.2519]
[1761361989500,0.8929,3930.0,3929.9,3.70987]
[1761361990592,0.8929,3930.0,3929.9,3.92417]
[1761361991794,0.8929,3930.0,3929.9,1.22217]
[1761361998494,0.7583,3930.0,3929.9,1.22217]
[1761362008093,0.7583,3930.0,3929.9,0.7642]
[1761362008295,0.8929,3930.0,3929.9,0.7642]
[1761362009207,1.35086,3930.0,3929.9,0.7642]
[1761362009802,1.35086,3930.0,3929.9,0.2232]
[1761362010301,1.35086,3930.0,3929.9,0.5499]
[1761362010599,4.55866,3930.0,3929.9,0.5499]
[1761362011809,4.1007,3930.0,3929.9,1.00787]
[1761362013809,4.1007,3930.0,3929.9,0.5499]
[1761362014908,4.55866,3930.0,3929.9,0.5499]
[1761362015713,4.55866,3930.0,3929.7,0.91590452]
[1761362016012,0.4377,3929.8,3929.7,1.46580452]
[1761362016212,0.7583,3929.8,3929.7,1.46580452]
[1761362016611,0.7583,3929.8,3929.7,1.92379452]
[1761362017415,0.7583,3929.8,3929.7,2.13809452]
[1761362018207,0.7583,3929.8,3929.7,1.22219]
[1761362031419,0.5362,3929.8,3929.7,1.22219]
[1761362031722,3.6427,3930.1,3930.0,1.24146]
[1761362032121,3.9755,3930.1,3930.0,1.24146]
[1761362033825,4.12163368,3930.5,3930.4,1.24142]
[1761362034018,3.2078,3930.5,3930.4,1.24142]
[1761362034219,3.7559,3930.5,3930.4,1.24142]
[1761362035522,3.2078,3930.5,3930.4,1.24142]
[1761362035923,3.4231,3930.5,3930.4,1.24142]
[1761362036129,3.7559,3930.5,3930.4,1.24142]
[1761362040835,3.9834,3930.5,3930.4,1.24142]
[1761362043043,0.7756,3930.5,3930.4,1.24142]
[1761362045645,0.5618,3930.7,3930.6,0.45789]
[1761362045940,3.2078,3931.1,3931.0,1.39685]
[1761362046143,3.7696,3931.1,3931.0,1.39685]
[1761362046536,0.5618,3931.1,3931.0,1.39685]
[1761362054251,0.5668,3931.5,3931.4,0.7808]
[1761362054750,0.9104,3931.5,3931.4,0.7808]
[1761362054946,0.9104,3931.5,3931.4,1.2386]
[1761362061352,0.9104,3931.5,3931.0,1.28301]
[1761362061353,0.3436,3931.4,3931.3,0.68631]
[1761362061557,0.775,3931.4,3931.3,1.02051]
[1761362077670,0.775,3931.4,3931.3,0.45781]
[1761362079468,0.775,3931.4,3931.3,0.68631]
[1761362081076,0.775,3931.4,3931.3,1.00541]
[1761362081478,0.775,3931.4,3931.3,0.68631]
[1761362081974,0.775,3931.4,3931.3,1.00541]
[1761362089580,0.775,3931.4,3931.3,1.23311]
[1761362091282,0.91383368,3931.5,3931.4,1.23579]
[1761362091578,1.46043368,3931.5,3931.4,1.23579]
[1761362091981,1.67233368,3931.5,3931.4,1.23579]
[1761362092478,0.7585,3931.5,3931.4,1.23579]
[1761362093388,1.46043368,3931.6,3931.5,1.36549]
[1761362094284,1.67233368,3931.6,3931.5,1.23579]
[1761362094585,1.67233368,3931.6,3931.5,0.2312]
[1761362094772,2.13010368,3931.6,3931.5,0.2312]
[1761362095077,1.67233368,3931.6,3931.5,0.68899]
[1761362095475,1.67233368,3931.6,3931.5,1.00809]
[1761362097983,1.67233368,3931.6,3931.5,1.23579]
[1761362100682,0.00289333,3931.8,3931.7,0.7733]
[1761362100886,0.00289333,3931.8,3931.7,2.14653069]
[1761362101384,0.00289333,3931.8,3931.7,0.7733]
[1761362102284,0.00289333,3931.8,3931.7,2.14396364]
[1761362103380,0.00289333,3931.8,3931.7,0.7733]
[1761362106381,0.00289333,3931.8,3931.7,1.68570982]
[1761362109880,0.78739333,3931.8,3931.7,0.7733]
[1761362110185,0.00289333,3931.8,3931.7,0.7733]
[1761362117689,0.00289333,3931.8,3931.7,1.23106]
[1761362118196,3.2078,3932.9,3932.8,0.779]
[1761362118399,3.7749,3932.9,3932.8,0.779]
[1761362119089,3.7749,3932.9,3932.8,0.78224047]
[1761362119293,3.77760914,3932.9,3932.8,0.78224047]
[1761362120194,3.44460914,3932.9,3932.8,0.78224047]
[1761362120595,3.21050914,3932.9,3932.8,0.78224047]
[1761362121396,3.54350914,3932.9,3932.8,0.78224047]
[1761362121699,3.77760914,3932.9,3932.8,0.78224047]
[1761362122499,4.01270914,3932.9,3932.8,0.78224047]
[1761362125102,4.01270914,3932.9,3932.8,1.23987047]
[1761362137220,3.21050914,3932.9,3932.8,1.23987047]
[1761362137421,3.54350914,3932.9,3932.8,1.23987047]
[1761362137817,3.77760914,3932.9,3932.8,1.23987047]
[1761362139223,3.44460914,3932.9,3932.8,1.23987047]
[1761362139424,3.21050914,3932.9,3932.8,1.23987047]
[1761362140914,0.00270914,3932.9,3932.8,1.23987047]
[1761362143528,0.00270914,3932.9,3932.8,10.16787047]
[1761362144926,0.00270914,3932.9,3932.8,11.07988698]
[1761362145220,0.00270914,3932.9,3932.8,11.53589523]
[1761362146427,0.00270914,3932.9,3932.8,10.16787047]
[1761362150835,0.00270914,3932.9,3932.8,13.37567047]
[1761362154234,0.00270914,3932.9,3932.8,14.74599451]
[1761362157936,0.00270914,3932.9,3932.8,13.37567047]
[1761362159240,0.00270914,3932.9,3932.8,10.16787047]
[1761362159440,0.00270914,3932.9,3932.8,13.37567047]
[1761362163739,0.76980914,3932.9,3932.8,5.81817393]
[1761362163937,0.76980914,3932.9,3932.8,0.69397047]
[1761362164138,0.76980914,3932.9,3932.8,9.38787047]
[1761362164343,0.76980914,3932.9,3932.8,10.30174654]
[1761362165544,0.76980914,3932.9,3932.8,1.37474654]
[1761362165739,0.76980914,3932.9,3932.8,10.30174654]
[1761362167244,0.76980914,3932.9,3932.8,1.37474654]
[1761362170548,0.76980914,3932.9,3932.8,1.58804654]
[1761362171243,0.76980914,3932.9,3932.8,1.13041654]
[1761362171446,0.76980914,3932.9,3932.8,0.00324047]
[1761362171947,0.76980914,3932.9,3932.8,0.46087047]
[1761362173050,0.76980914,3932.9,3932.8,1.00657047]
[1761362174948,0.76980914,3932.9,3932.8,0.22174047]
[1761362175650,0.76980914,3932.9,3932.8,0.67937047]
[1761362176436,0.76980914,3932.9,3932.8,1.23857047]
[1761362182744,0.55440914,3932.9,3932.8,1.23857047]
[1761362183749,0.78820914,3932.9,3932.8,1.23857047]
[1761362183951,0.78820914,3932.9,3932.8,0.46087047]
[1761362188953,0.78820914,3932.9,3932.8,0.67937047]
[1761362189851,0.78820914,3932.9,3932.8,1.00657047]
[1761362190157,0.78820914,3932.9,3932.8,0.46087047]
[1761362190957,0.78820914,3932.9,3932.8,0.67937047]
[1761362191255,0.78820914,3932.9,3932.8,1.00657047]
[1761362191554,0.78820914,3932.9,3932.8,0.67937047]
[1761362192054,0.78820914,3932.9,3932.8,0.46087047]
[1761362197262,1.24582914,3932.9,3932.8,0.00324047]
[1761362199355,2.16060307,3932.9,3932.8,0.00324047]
[1761362199755,1.24582914,3932.9,3932.8,0.00324047]
[1761362201659,2.16035928,3932.9,3932.8,0.00324047]
[1761362202257,10.16035928,3932.9,3932.8,0.00324047]
[1761362206857,0.78820914,3932.9,3932.8,1.23797047]
[1761362207062,0.55440914,3932.9,3932.8,1.23797047]
[1761362210959,0.00270914,3932.9,3932.8,1.23797047]
[1761362215668,0.00270914,3932.9,3932.8,2.60847393]
[1761362217175,3.5485,3933.6,3933.5,1.36695]
[1761362217469,3.7829,3933.6,3933.5,1.36695]
[1761362218165,3.78476698,3933.6,3933.5,1.36695]
[1761362219065,3.20966698,3933.6,3933.5,1.36695]
[1761362221570,0.00186698,3933.6,3933.5,1.36695]
[1761362222468,0.55056698,3933.6,3933.5,1.36695]
[1761362222772,0.77696698,3933.6,3933.5,1.23465]
[1761362247087,0.77696698,3933.6,3933.5,1.36405]
[1761362247482,0.55056698,3933.6,3933.5,1.36405]
[1761362247688,0.22346698,3933.6,3933.5,1.36405]
[1761362247883,0.00186698,3933.6,3933.5,1.36405]
[1761362248088,0.00186698,3933.6,3933.5,2.27760821]
[1761362250387,0.00186698,3933.6,3933.5,1.36405]
[1761362250592,0.00186698,3933.6,3933.5,2.27808989]
[1761362250996,0.00186698,3933.6,3933.5,1.36405]
[1761362251599,0.00186698,3933.6,3933.5,2.27801791]
[1761362254695,0.00186698,3933.6,3933.5,1.36405]
[1761362254893,0.00186698,3933.6,3933.5,2.27794169]
[1761362255696,0.33706698,3933.6,3933.5,2.27794169]
[1761362255900,0.00186698,3933.6,3933.5,2.27794169]
[1761362261901,0.00186698,3933.6,3933.5,1.36405]
[1761362264204,0.00186698,3933.6,3933.5,10.28805]
[1761362271608,0.34376698,3933.6,3933.5,10.28805]
[1761362271911,0.34376698,3933.6,3933.5,11.07283376]
[1761362271912,0.79596698,3933.6,3933.5,11.07283376]
[1761362273712,0.79596698,3933.6,3933.5,10.15865]
[1761362276114,0.00186698,3933.6,3933.5,10.29545]
[1761362280415,0.55826698,3933.6,3933.5,10.29545]
[1761362281915,0.23036698,3933.6,3933.5,10.29545]
[1761362282318,0.00186698,3933.6,3933.5,10.29545]
[1761362284516,0.77106698,3933.6,3933.5,0.2217]
[1761362284821,0.77106698,3933.6,3933.5,0.7759]
[1761362285212,0.77106698,3933.6,3933.5,1.69029827]
[1761362286329,0.77106698,3933.6,3933.5,2.14784827]
[1761362286515,0.77106698,3933.6,3933.5,1.69029827]
[1761362286819,0.77106698,3933.6,3933.5,1.35559827]
[1761362287123,1.22860698,3933.6,3933.5,0.2217]
[1761362287617,0.45755,3933.5,3933.4,0.91439827]
[1761362287921,0.4446,3933.2,3933.0,1.12729827]
[1761362288217,3.9893,3933.1,3933.0,1.23741]
[1761362289820,3.9893,3933.1,3933.0,0.7798]
[1761362290121,3.9893,3933.1,3933.0,0.2129]
[1761362292426,3.9893,3933.1,3933.0,0.5527]
[1761362292626,0.7815,3933.1,3933.0,0.7798]
[1761362293720,0.7815,3933.4,3933.1,0.3398]
[1761362293924,0.7815,3933.4,3933.3,0.7798]
[1761362295530,0.7815,3933.4,3933.3,1.23738]
[1761362299033,3.9893,3933.4,3933.3,1.23738]
[1761362302127,3.2078,3933.4,3933.3,1.23738]
[1761362304024,3.7642,3933.4,3933.3,1.23738]
[1761362305334,0.5564,3933.4,3933.3,1.23738]
[1761362311237,0.2195,3933.4,3933.3,1.23738]
[1761362311443,0.00186698,3933.6,3933.5,0.7798]
[1761362311444,0.55826698,3933.6,3933.5,0.7798]
[1761362311645,0.55826698,3933.6,3933.5,1.37765]
[1761362312142,0.00186698,3933.6,3933.5,1.37765]
[1761362313541,0.78336698,3933.6,3933.5,0.7798]
[1761362313846,0.78336698,3933.6,3933.5,1.23735]
[1761362319049,0.78336698,3933.6,3933.5,0.45755]
[1761362319257,0.78336698,3933.6,3933.5,1.01005]
[1761362319851,0.78336698,3933.6,3933.5,1.24095]
[1761362321952,0.00186698,3933.6,3933.5,1.37925]
[1761362322854,0.34916698,3933.6,3933.5,1.37925]
[1761362323658,0.57336698,3933.6,3933.5,0.9217]
[1761362323856,0.80186698,3933.6,3933.5,1.24095]
[1761362326057,0.80186698,3933.6,3933.5,0.7834]
[1761362326256,0.80186698,3933.6,3933.5,1.24095]
[1761362326856,0.8,3933.4,3933.3,0.3382]
[1761362327050,0.8,3933.4,3933.3,1.01008]
[1761362331363,0.8,3933.4,3933.3,1.92447827]
[1761362333462,3.2078,3933.5,3933.4,0.79576]
[1761362333663,3.2078,3933.5,3933.4,2.15455005]
[1761362333866,0.00186698,3933.6,3933.5,1.37925]
[1761362334166,0.57336698,3933.6,3933.5,1.37925]
[1761362335068,0.80186698,3933.6,3933.5,1.24095]
[1761362336157,0.80186698,3933.6,3933.5,0.7834]
[1761362337171,0.80186698,3933.6,3933.5,1.24095]
[1761362337661,0.80186698,3933.6,3933.5,0.7834]
[1761362337863,0.80186698,3933.6,3933.5,1.24095]
[1761362342373,0.9216,3933.5,3933.4,2.14595005]
[1761362343066,0.5701,3933.5,3933.4,2.14595005]
[1761362345077,0.5701,3933.5,3933.4,1.68839005]
[1761362345270,0.5701,3933.5,3933.4,2.14595005]
[1761362348865,0.00186698,3933.6,3933.5,1.38405]
[1761362349067,0.00186698,3933.6,3933.5,2.29847831]
[1761362349271,0.00186698,3933.6,3933.5,2.75455346]
[1761362349472,0.00186698,3933.6,3933.5,1.38405]
[1761362350987,0.00186698,3933.6,3933.5,4.08605]
[1761362352387,3.2078,3934.3,3934.2,1.25607]
[1761362353269,3.2110332,3934.3,3934.2,1.25607]
[1761362359081,0.0032332,3934.3,3934.2,1.25607]
[1761362359277,0.3519,3935.0,3934.9,1.25599]
[1761362359479,3.2078,3935.1,3935.0,0.9265]
[1761362359778,3.5597,3935.1,3935.0,0.9265]
[1761362360186,3.20985188,3935.1,3935.0,0.9265]
[1761362360376,0.00205188,3935.1,3935.0,0.9265]
[1761362360884,1e-08,3935.1,3935.0,1.83715651]
[1761362361476,1e-08,3935.1,3935.0,0.9265]
[1761362366286,0.78940001,3935.1,3935.0,0.7986]
[1761362366588,0.7894,3934.8,3934.7,0.5698]
[1761362366786,0.7894,3934.8,3934.7,0.7986]
[1761362369384,0.5657,3934.8,3934.7,0.7986]
[1761362369589,0.56570001,3935.1,3935.0,1.25598]
[1761362369991,0.78940001,3935.1,3935.0,1.25598]
[1761362372993,0.78940001,3935.1,3935.0,0.7986]
[1761362376096,0.78940001,3935.1,3935.0,1.25598]
[1761362396318,0.78940001,3935.1,3935.0,2.16663651]
[1761362397522,0.78940001,3935.1,3935.0,0.91065651]
[1761362397718,0.9192,3935.0,3934.9,1.36804651]
[1761362398112,0.9192,3935.0,3934.9,1.59574651]
[1761362398313,0.9192,3935.0,3934.9,1.93974651]
[1761362400817,0.9192,3935.0,3934.9,0.2277]
[1761362403020,0.9192,3935.0,3934.5,1.49688065]
[1761362403021,0.89931,3934.7,3934.5,0.91065651]
[1761362403318,0.7665,3934.2,3934.1,1.03338]
[1761362404624,0.7665,3934.2,3934.1,1.24638]
[1761362410216,0.7665,3934.2,3934.1,0.7889]
[1761362410825,0.7665,3934.2,3934.1,1.24638]
[1761362430541,0.5522,3934.2,3934.1,1.24638]
[1761362432035,0.5522,3934.2,3934.1,2.15703651]
[1761362433237,0.5522,3934.2,3934.1,1.24638]
[1761362439956,0.7708,3934.2,3934.1,1.24638]
[1761362440757,0.7708,3934.2,3934.1,0.7889]
[1761362441058,0.7708,3934.2,3934.1,1.70164953]
[1761362441958,1.22827,3934.2,3934.1,1.70164953]
[1761362442271,0.7708,3934.2,3934.1,0.7889]
[1761362443371,3.9786,3934.2,3934.1,0.7889]
[1761362444463,0.7708,3934.2,3934.1,0.7889]
[1761362444661,3.9786,3934.2,3934.1,0.7889]
[1761362445671,3.9786,3934.2,3934.1,1.24638]
[1761362446165,3.9786,3934.2,3934.1,0.7889]
[1761362446868,0.7708,3934.2,3934.1,0.7889]
[1761362447069,3.9786,3934.2,3934.1,0.7889]
[1761362448259,4.43607,3934.2,3934.1,0.7889]
[1761362449472,4.43607,3934.2,3934.1,1.24638]
[1761362450464,4.43607,3934.2,3934.1,0.45748]
[1761362453369,0.90367,3934.2,3934.0,1.14784953]
[1761362453572,0.4754,3934.0,3933.8,10.41044953]
[1761362453875,0.9183,3934.0,3933.9,1.03321]
[1761362454774,1.3758,3934.0,3933.9,1.03321]
[1761362456474,1.3758,3934.0,3933.9,0.69261]
[1761362457574,1.3758,3934.0,3933.9,1.03321]
[1761362458073,1.3758,3934.0,3933.9,0.2351]
[1761362458262,0.45751,3933.9,3933.8,8.922]
[1761362458468,1.22201,3933.9,3933.8,8.922]
[1761362458774,1.22201,3933.9,3933.8,9.4744]
[1761362459870,0.7645,3933.9,3933.8,9.93192]
[1761362460372,0.7645,3933.9,3933.8,10.15012]
[1761362464285,1.22201,3933.9,3933.8,9.6926]
[1761362466576,1.22201,3933.9,3933.8,10.15012]
[1761362466773,0.7645,3933.9,3933.8,10.15012]
[1761362472479,0.5405,3933.9,3933.8,10.15012]
[1761362473080,0.2205,3933.9,3933.8,10.15012]
[1761362473473,0.3259,3934.0,3933.9,0.92041]
[1761362473673,0.45748,3934.1,3933.9,0.92041]
[1761362473873,1.00428,3934.1,3934.0,0.597]
[1761362474076,1.00428,3934.1,3934.0,0.9384]
[1761362474681,4.21208,3934.1,3934.0,0.9384]
[1761362474882,4.21208,3934.1,3934.0,1.3959]
[1761362475879,4.43998,3934.1,3934.0,0.8043]
[1761362476081,3.9825,3934.1,3934.0,1.2618]
[1761362476485,3.2078,3934.1,3934.0,1.3959]
[1761362480186,0.464,3934.0,3933.9,0.81409453]
[1761362480385,0.7747,3933.2,3932.8,0.00324047]
[1761362480578,0.4488,3932.1,3932.0,3.7771]
[1761362480889,0.7747,3932.1,3932.0,0.5693]
[1761362481190,4.44022,3932.1,3932.0,0.2279]
[1761362481483,4.44022,3932.1,3931.8,0.2279]
[1761362481484,0.7747,3931.9,3931.8,0.2279]
[1761362481779,0.7747,3931.9,3931.8,0.57154278]
[1761362481982,0.7747,3931.9,3931.8,0.80654278]
[1761362482184,3.75740266,3932.1,3932.0,0.1341]
[1761362482387,3.21060266,3932.1,3932.0,0.9384]
[1761362482587,3.53650266,3932.1,3932.0,0.9384]
[1761362482789,3.75740266,3932.1,3932.0,0.9384]
[1761362482988,3.98530266,3932.1,3932.0,0.8043]
[1761362487885,3.98530266,3932.1,3931.8,0.45999278]
[1761362487886,0.7747,3931.9,3931.8,0.00224278]
[1761362495300,3.21060266,3932.1,3931.9,0.3414]
[1761362495587,3.75740266,3932.1,3932.0,0.9384]
[1761362495995,3.98530266,3932.1,3932.0,0.8043]
[1761362497495,0.00280266,3932.1,3932.0,0.9384]
[1761362498791,0.00280266,3932.1,3932.0,4.1462]
[1761362503299,0.5638,3932.9,3932.8,0.7617]
[1761362504300,0.5664727,3932.9,3932.8,0.7617]
[1761362504500,0.5664727,3932.9,3932.8,1.21933]
[1761362504689,0.7806727,3932.9,3932.8,0.7617]
[1761362511197,0.7806727,3932.9,3932.8,1.21933]
[1761362511800,0.7806727,3932.9,3932.5,0.3247]
[1761362512006,0.778,3932.7,3932.6,1.00686]
[1761362514407,0.778,3932.7,3932.6,1.21936]
[1761362514608,0.5638,3932.7,3932.6,1.21936]
[1761362516709,0.0026727,3932.9,3932.8,1.21933]
[1761362517406,0.3526727,3932.9,3932.8,1.21933]
[1761362517809,0.0026727,3932.9,3932.8,1.21933]
[1761362518008,0.5664727,3932.9,3932.8,1.21933]
[1761362518809,0.0026727,3932.9,3932.8,1.21933]
[1761362520415,3.2078,3933.5,3933.4,1.24256]
[1761362520898,3.6486,3933.9,3933.8,0.785]
[1761362521104,4.22099116,3933.9,3933.8,0.785]
[1761362521608,3.96880848,3933.9,3933.8,0.785]
[1761362522006,0.00240848,3933.9,3933.8,0.785]
[1761362525209,0.53370848,3933.9,3933.8,0.785]
[1761362526309,0.76100848,3933.9,3933.8,0.785]
[1761362526511,0.76100848,3933.9,3933.8,0.2343]
[1761362526712,0.76100848,3933.9,3933.8,0.5579]
[1761362527614,0.76100848,3933.9,3933.8,0.785]
[1761362534824,0.00240848,3933.9,3933.8,0.785]
[1761362535925,0.00240848,3933.9,3933.8,1.24252]
[1761362536823,0.00240848,3933.9,3933.8,4.45032]
[1761362538726,0.5673,3934.4,3934.3,0.45746]
[1761362538925,0.5673,3934.4,3934.3,1.23466]
[1761362539829,0.56908145,3934.4,3934.3,1.23466]
[1761362542228,0.00178145,3934.4,3934.3,1.23466]
[1761362542629,3.6725,3936.0,3935.4,0.445]
[1761362542829,3.6725,3936.0,3935.9,0.7772]
[1761362542830,3.4386,3936.0,3935.9,0.7772]
[1761362543134,3.6519,3936.0,3935.9,0.7772]
[1761362543337,3.9884,3936.0,3935.9,0.7772]
[1761362543630,3.99127961,3936.0,3935.9,0.77914613]
[1761362544035,3.77797961,3936.0,3935.9,0.77914613]
[1761362545619,3.99127961,3936.0,3935.9,0.77914613]
[1761362546929,4.11947961,3936.0,3935.9,0.77914613]
[1761362552137,3.77797961,3936.0,3935.9,0.77914613]
[1761362552836,3.99127961,3936.0,3935.9,0.77914613]
[1761362553532,3.99127961,3936.0,3935.9,1.23641613]
[1761362553733,3.77797961,3936.0,3935.9,1.23641613]
[1761362555034,0.00287961,3936.0,3935.9,1.23641613]
[1761362564341,0.32917961,3936.0,3935.9,1.23641613]
[1761362564537,0.56417961,3936.0,3935.9,1.23641613]
[1761362566236,0.92037961,3936.0,3935.9,0.45921613]
[1761362566643,0.92037961,3936.0,3935.9,1.00701613]
[1761362569738,0.92037961,3936.0,3935.9,1.23121613]
[1761362570540,0.79077961,3936.0,3935.9,1.23121613]
[1761362570841,0.92037961,3936.0,3935.9,1.23121613]
[1761362575537,1.47922107,3936.0,3935.9,1.23121613]
[1761362576438,0.92037961,3936.0,3935.9,1.23121613]
[1761362576740,0.92037961,3936.0,3935.9,0.67771613]
[1761362577040,0.92037961,3936.0,3935.9,1.00701613]
[1761362580042,0.92037961,3936.0,3935.9,0.00194613]
[1761362580234,1.479328,3936.0,3935.9,0.00194613]
[1761362580638,0.92037961,3936.0,3935.9,0.00194613]
[1761362580838,1.4793819,3936.0,3935.9,0.00194613]
[1761362583845,1.4793819,3936.0,3935.9,0.45921613]
[1761362584047,1.4793819,3936.0,3935.9,0.00194613]
[1761362585240,1.4793819,3936.0,3935.9,0.45921613]
[1761362585751,1.4793819,3936.0,3935.9,1.02031613]
[1761362586142,1.4793819,3936.0,3935.9,0.00194613]
[1761362587439,1.4793819,3936.0,3935.9,0.45921613]
[1761362589542,1.4793819,3936.0,3935.9,0.00194613]
[1761362589735,1.9366419,3936.0,3935.9,0.00194613]
[1761362590639,1.4793819,3936.0,3935.9,0.00194613]
[1761362590838,1.4793819,3936.0,3935.9,0.45921613]
[1761362591848,1.9366419,3936.0,3935.9,0.00194613]
[1761362592045,1.9366419,3936.0,3935.9,0.45921613]
[1761362594649,5.1444419,3936.0,3935.9,0.45921613]
[1761362595446,5.1444419,3936.0,3935.9,0.00194613]
[1761362599255,6.05897204,3936.0,3935.9,0.00194613]
[1761362600451,14.05897204,3936.0,3935.9,0.00194613]
[1761362601047,6.05897204,3936.0,3935.9,0.00194613]
[1761362601243,6.05897204,3936.0,3934.0,0.1362]
[1761362601244,0.2212,3934.9,3934.8,0.45739]
[1761362601444,0.2212,3934.4,3934.2,2.83056982]
[1761362601648,0.7798,3934.4,3934.3,1.22376]
[1761362602256,0.7798,3934.4,3934.3,1.22652085]
[1761362609358,3.9876,3934.8,3934.7,1.22371]
[1761362609562,0.7798,3934.8,3934.7,1.22371]
[1761362609856,0.7798,3934.8,3934.7,0.5431]
[1761362610064,0.9077,3934.5,3934.4,1.00055]
[1761362610562,0.9077,3934.5,3934.4,1.22375]